fUST/lending_fUST_20250416
["ID","MTS","AMOUNT","RATE_DAILY","PERIOD"]
[358149818,1744776634512,-500.0,0.00041095,14]
[358149819,1744776634522,-500.0,0.00041095,14]
[358149820,1744776634532,-500.0,0.00041095,14]
[358149821,1744776634541,-500.0,0.00041095,14]
[358149822,1744776634550,-500.0,0.00041095,14]
[358149823,1744776634560,-500.0,0.00041095,14]
[358149824,1744776634569,-2019.09,0.00041095,14]
[358149825,1744776634579,-884.47,0.00041095,14]
[358149826,1744776634588,-500.0,0.00041095,14]
[358149827,1744776634597,-500.0,0.00041095,14]
[358149828,1744776634607,-500.0,0.00041095,14]
[358149829,1744776634617,-500.0,0.00041095,14]
[358149830,1744776634627,-271.21430334,0.00041095,14]
[358149831,1744776634637,-500.0,0.00041095,14]
[358149832,1744776634646,-500.0,0.00041095,14]
[358149833,1744776634656,-501.52192259,0.00041095,14]
[358149834,1744776634666,-500.0,0.00041095,14]
[358149835,1744776634676,-1130.03,0.00041095,14]
[358149836,1744776634685,-500.0,0.00041095,14]
[358149837,1744776634696,-14897.35,0.00041095,14]
[358149838,1744776634706,-500.0,0.00041095,14]
[358149839,1744776634715,-500.0,0.00041095,14]
[358149840,1744776634725,-500.50681155,0.00041095,14]
[358149841,1744776634734,-500.0,0.00041095,14]
[358149842,1744776634743,-500.49205003,0.00041095,14]
[358149843,1744776634753,-500.75325275,0.00041095,14]
[358149844,1744776634763,-500.0,0.00041095,14]
[358149845,1744776634772,-564.94764707,0.00041095,14]
[358149846,1744776634781,-500.0,0.00041095,14]
[358149847,1744776634793,-500.0,0.00041095,14]
[358149848,1744776634803,-500.0,0.00041095,14]
[358149849,1744776634812,-501.12820646,0.00041095,14]
[358149850,1744776634822,-439.22545865,0.00041095,14]
[358149851,1744776634832,-500.0,0.00041095,14]
[358149852,1744776634842,-500.0,0.00041095,14]
[358149853,1744776634851,-500.76886496,0.00041095,14]
[358149854,1744776634861,-500.0,0.00041095,14]
[358149855,1744776634872,-500.0,0.00041095,14]
[358149856,1744776634882,-500.0,0.00041095,14]
[358149857,1744776634892,-415.03512853,0.00041095,14]
[358149858,1744776634902,-500.0,0.00041095,14]
[358149859,1744776634912,-500.0,0.00041095,14]
[358149860,1744776634920,-500.0,0.00041095,14]
[358149861,1744776634930,-500.0,0.00041095,14]
[358149862,1744776634939,-500.0,0.00041095,14]
[358149863,1744776634949,-500.0,0.00041095,14]
[358149864,1744776634960,-500.0,0.00041095,14]
[358149865,1744776634969,-558.7851028,0.00041095,14]
[358149866,1744776634979,-863.32,0.00041095,14]
[358149867,1744776634988,-500.0,0.00041095,14]
[358149868,1744776634997,-580.82306497,0.00041095,14]
[358149869,1744776635007,-85.41070612,0.00041095,14]
[358149885,1744776638315,-500.0,0.00040662,15]
[358149886,1744776638326,-28.89709118,0.00040662,31]
[358149887,1744776638338,-471.10290882,0.00040662,31]
[358149888,1744776638349,-367.57051992,0.00040662,2]
[358149889,1744776638358,-500.0,0.00040662,31]
[358149890,1744776638368,-500.0,0.00040662,15]
[358149891,1744776638378,-500.0,0.00040662,31]
[358149892,1744776638387,-500.0,0.00040662,31]
[358149893,1744776638397,-500.0,0.00040662,15]
[358149895,1744776638408,-500.0,0.00040662,31]
[358149896,1744776638417,-500.0,0.00040662,31]
[358149897,1744776638428,-622.11374473,0.00040662,15]
[358149898,1744776638437,-500.0,0.00040662,31]
[358149899,1744776638446,-500.0,0.00040662,31]
[358149900,1744776638456,-500.0,0.00040662,15]
[358149901,1744776638465,-500.0,0.00040662,31]
[358149902,1744776638475,-500.0,0.00040662,31]
[358149903,1744776638484,-500.0,0.00040662,31]
[358149904,1744776638494,-500.0,0.00040662,15]
[358149905,1744776638504,-500.0,0.00040662,31]
[358149906,1744776638513,-500.0,0.00040662,31]
[358149907,1744776638523,-500.0,0.00040662,31]
[358149908,1744776638532,-500.0,0.00040662,31]
[358149909,1744776638541,-500.0,0.00040662,15]
[358149910,1744776638551,-500.0,0.00040662,31]
[358149911,1744776638560,-297.70618147,0.00040662,31]
[358149912,1744776638570,-500.0,0.00040662,31]
[358149913,1744776638579,-500.0,0.00040662,31]
[358149914,1744776638588,-500.0,0.00040662,31]
[358149915,1744776638598,-500.0,0.00040662,31]
[358149916,1744776638607,-500.0,0.00040662,31]
[358149917,1744776638617,-500.0,0.00040662,31]
[358149918,1744776638627,-500.0,0.00040662,31]
[358149919,1744776638637,-500.0,0.00040662,31]
[358149920,1744776638647,-500.0,0.00040662,31]
[358149921,1744776638658,-500.0,0.00040662,31]
[358149922,1744776638668,-500.0,0.00040662,31]
[358149923,1744776638677,-500.0,0.00040662,31]
[358149924,1744776638687,-500.0,0.00040662,31]
[358149925,1744776638696,-500.0,0.00040662,31]
[358149926,1744776638705,-500.0,0.00040662,31]
[358149927,1744776638717,-500.0,0.00040662,31]
[358149928,1744776638727,-500.0,0.00040662,31]
[358149929,1744776638739,-500.0,0.00040662,31]
[358149930,1744776638750,-500.0,0.00040662,31]
[358149931,1744776638761,-500.0,0.00040662,31]
[358149932,1744776638770,-500.0,0.00040662,31]
[358149933,1744776638780,-500.0,0.00040662,31]
[358149934,1744776638790,-500.0,0.00040662,31]
[358149935,1744776638801,-500.0,0.00040662,31]
[358149936,1744776638811,-500.0,0.00040662,31]
[358149937,1744776638820,-500.0,0.00040662,31]
[358149938,1744776638830,-177.67065392,0.00040662,31]
[358149939,1744776638840,-500.0,0.00040662,31]
[358149940,1744776638849,-500.0,0.00040662,31]
[358149941,1744776638859,-500.0,0.00040662,31]
[358149942,1744776638869,-500.0,0.00040662,31]
[358149943,1744776638878,-500.0,0.00040662,31]
[358149944,1744776638887,-500.0,0.00040662,31]
[358149945,1744776638897,-500.0,0.00040662,31]
[358149946,1744776638908,-500.0,0.00040662,31]
[358149947,1744776638918,-500.0,0.00040662,31]
[358149948,1744776638928,-500.0,0.00040662,31]
[358149949,1744776638938,-500.0,0.00040662,31]
[358149950,1744776638947,-500.0,0.00040662,31]
[358149951,1744776638956,-500.0,0.00040662,31]
[358149952,1744776638967,-500.0,0.00040662,31]
[358149953,1744776638977,-500.0,0.00040663,31]
[358149954,1744776638987,-500.0,0.00040663,31]
[358149955,1744776638996,-229.02170677,0.00040663,31]
[358149956,1744776639009,-270.97829323,0.00040663,31]
[358149957,1744776639018,-500.0,0.00040663,31]
[358149958,1744776639027,-500.0,0.00040663,31]
[358149959,1744776639037,-183.74299183,0.00041087,2]
[358149960,1744776639046,-177.03674666,0.00041087,2]
[358149961,1744776639056,-500.0,0.00041095,14]
[358149962,1744776639066,-894.41,0.00041095,14]
[358149963,1744776639077,-500.0,0.00041095,14]
[358149964,1744776639086,-500.0,0.00041095,14]
[358149965,1744776639097,-500.0,0.00041095,14]
[358149966,1744776639107,-500.0,0.00041095,14]
[358149967,1744776639119,-580.96,0.00041095,14]
[358149968,1744776639129,-784.55,0.00041095,14]
[358149969,1744776639139,-500.0,0.00041095,14]
[358149970,1744776639150,-623.06,0.00041095,14]
[358149971,1744776639160,-500.0,0.00041095,14]
[358149972,1744776639169,-500.0,0.00041095,14]
[358149973,1744776639179,-902.49,0.00041095,14]
[358149974,1744776639188,-500.0,0.00041095,14]
[358149975,1744776639197,-500.0,0.00041095,14]
[358149976,1744776639207,-749.76,0.00041095,14]
[358149977,1744776639216,-1514.71,0.00041095,14]
[358149978,1744776639225,-500.0,0.00041095,14]
[358149979,1744776639234,-500.0,0.00041095,14]
[358149980,1744776639244,-500.0,0.00041095,14]
[358149981,1744776639253,-500.0,0.00041095,14]
[358149982,1744776639263,-500.0,0.00041095,14]
[358149983,1744776639272,-1124.87,0.00041095,14]
[358149984,1744776639281,-500.0,0.00041095,14]
[358149985,1744776639290,-500.0,0.00041095,14]
[358149986,1744776639299,-563.1,0.00041095,14]
[358149987,1744776639309,-500.0,0.00041095,14]
[358149988,1744776639318,-500.0,0.00041095,14]
[358149989,1744776639327,-500.0,0.00041095,14]
[358149990,1744776639337,-273.4353332,0.00041095,14]
[358149995,1744776640606,-177.03674666,0.00041087,2]
[358149996,1744776640616,-183.74299183,0.00041087,2]
[358149997,1744776640627,-1008.9446668,0.00041095,14]
[358149998,1744776640637,-14.56898131,0.00041095,14]
[358150004,1744776646184,-418.425,0.000408,10]
[358150006,1744776853255,338.29961265,0.00025,120]
[358150080,1744777835976,-312.54626401,0.00028,10]
[358150081,1744777835986,-200.0,0.00032268,2]
[358150082,1744777835996,-255.89627164,0.0003526,2]
[358150083,1744777836006,-2102.1,0.0003547,2]
[358150084,1744777836016,-1393.64278508,0.00036319,4]
[358150085,1744777836026,-160.0,0.00036319,2]
[358150086,1744777836037,-211.08793209,0.000369,13]
[358150087,1744777836047,-400.0,0.00037049,3]
[358150088,1744777836057,-1628.78897956,0.0003705,2]
[358150089,1744777836069,-1777.37555389,0.0003705,2]
[358150090,1744777836093,-1332.30454755,0.0003705,2]
[358150091,1744777836103,-952.66,0.00038,120]
[358150092,1744777836113,-272.43053875,0.00039792,31]
[358150094,1744777836124,-227.56946125,0.00039792,31]
[358150095,1744777836134,-500.0,0.00039792,31]
[358150096,1744777836145,-500.0,0.00039792,15]
[358150098,1744777836154,-219.60836399,0.00039792,31]
[358150099,1744777836165,-500.0,0.00039792,31]
[358150100,1744777836174,-500.0,0.00039792,2]
[358150101,1744777836184,-302.82217476,0.00039792,31]
[358150102,1744777836195,-197.17782524,0.00039792,31]
[358150103,1744777836204,-500.0,0.00039792,31]
[358150104,1744777836214,-500.0,0.00039792,31]
[358150105,1744777836223,-493.0336086,0.00039792,15]
[358150106,1744777836233,-500.0,0.00039792,31]
[358150107,1744777836244,-500.0,0.00039792,31]
[358150108,1744777836254,-500.0,0.00039792,31]
[358150109,1744777836263,-411.30625394,0.00039792,31]
[358150110,1744777836272,-500.0,0.00039792,2]
[358150111,1744777836281,-348.48231222,0.00039792,31]
[358150125,1744777838474,-151.51768778,0.00039792,31]
[358150127,1744777838484,-500.0,0.00039792,31]
[358150129,1744777838493,-500.0,0.00039792,31]
[358150130,1744777838503,-500.0,0.00039792,31]
[358150132,1744777838512,-500.0,0.00039792,31]
[358150134,1744777838521,-500.0,0.00039792,2]
[358150136,1744777838530,-500.0,0.00039792,31]
[358150138,1744777838539,-500.0,0.00039792,15]
[358150140,1744777838548,-500.0,0.00039792,31]
[358150142,1744777838557,-398.60631943,0.00039792,2]
[358150144,1744777838567,-236.08829059,0.00039792,31]
[358150146,1744777838576,-500.0,0.00039792,31]
[358150148,1744777838585,-500.0,0.00039792,31]
[358150150,1744777838595,-500.0,0.00039792,31]
[358150152,1744777838604,-500.0,0.00039792,31]
[358150154,1744777838614,-500.0,0.00039792,31]
[358150155,1744777838623,-500.0,0.00039792,31]
[358150157,1744777838632,-500.0,0.00039792,31]
[358150159,1744777838641,-500.0,0.00039792,31]
[358150161,1744777838651,-500.0,0.00039792,31]
[358150163,1744777838660,-13.7877022,0.00039792,31]
[358150192,1744777843452,-486.2122978,0.00039792,31]
[358150193,1744777843462,-500.0,0.00039792,31]
[358150194,1744777843472,-500.0,0.00039792,31]
[358150195,1744777843481,-500.0,0.00039792,31]
[358150196,1744777843491,-170.55733375,0.00039792,31]
[358150197,1744777843500,-500.0,0.00039792,31]
[358150198,1744777843510,-500.0,0.00039792,31]
[358150199,1744777843519,-135.33294825,0.00039792,31]
[358150200,1744777843531,-364.66705175,0.00039792,31]
[358150201,1744777843541,-500.0,0.00039792,31]
[358150202,1744777843551,-500.0,0.00039792,31]
[358150203,1744777843560,-500.0,0.00039792,31]
[358150204,1744777843570,-500.0,0.00039792,31]
[358150205,1744777843580,-378.66145415,0.00039792,31]
[358150206,1744777843589,-500.0,0.00039792,31]
[358150207,1744777843599,-500.0,0.00039792,31]
[358150208,1744777843608,-500.0,0.00039792,31]
[358150209,1744777843618,-500.0,0.00039792,31]
[358150210,1744777843627,-500.0,0.00039792,31]
[358150211,1744777843637,-500.0,0.00039792,31]
[358150212,1744777843647,-500.0,0.00039792,31]
[358150213,1744777843656,-22935.79409901,0.00039793,2]
[358150214,1744777843669,-751.18808791,0.00039793,2]
[358150236,1744778963321,-153.47811073,0.00024,7]
[358150250,1744779032810,-992.48464716,0.00024,7]
[358150251,1744779032823,-1715.20843484,0.00024,7]
[358150252,1744779032832,-156.0,0.00025,5]
[358150253,1744779032843,-197.0,0.00026,9]
[358150254,1744779032852,-2014.51,0.00027297,2]
[358150255,1744779032862,-300.0,0.00027465,2]
[358150256,1744779032871,-11271.4496675,0.00027466,2]
[358150257,1744779032881,-2963.7403582,0.00027531,2]
[358150258,1744779032891,-207.30818588,0.000279,7]
[358150259,1744779032901,-300.0,0.00028399,2]
[358150260,1744779032910,-5000.0,0.000284,2]
[358150261,1744779032919,-207.30818587,0.00028956,8]
[358150262,1744779032929,-2661.89900458,0.00028956,2]
[358150263,1744779032943,-14735.03668319,0.00028956,2]
[358150264,1744779032962,-466.53666222,0.00028956,2]
[358150265,1744779032974,-1828.40038363,0.00028956,2]
[358150266,1744779032986,-359.3437208,0.00028956,2]
[358150267,1744779033006,-7043.82137218,0.00028956,2]
[358150268,1744779033016,-300.0,0.00029678,2]
[358150269,1744779033026,-207.30818587,0.00030011,9]
[358150270,1744779033036,-1167.44578115,0.00030691,2]
[358150271,1744779033047,-485.57676326,0.00030789,2]
[358150272,1744779033058,-500.0,0.00030789,2]
[358150273,1744779033069,-500.0,0.00030789,2]
[358150274,1744779033079,-500.0,0.00030789,2]
[358150275,1744779033090,-500.0,0.00030789,2]
[358150276,1744779033100,-500.0,0.00030789,2]
[358150277,1744779033111,-500.0,0.00030789,2]
[358150278,1744779033122,-32.26124711,0.00030789,2]
[358150317,1744779038713,-500.0,0.00028955,2]
[358150318,1744779038729,-500.0,0.00028955,2]
[358150319,1744779038740,-500.0,0.00028955,2]
[358150321,1744779038750,-500.0,0.00028955,2]
[358150322,1744779038761,-500.0,0.00028955,2]
[358150323,1744779038772,-644.06583596,0.00028955,2]
[358150324,1744779038782,-500.0,0.00028955,2]
[358150325,1744779038792,-500.0,0.00028955,2]
[358150326,1744779038806,-500.0,0.00028955,2]
[358150327,1744779038817,-500.0,0.00028955,2]
[358150328,1744779038828,-158.88559376,0.00028955,2]
[358150329,1744779038839,-500.0,0.00028955,2]
[358150330,1744779038849,-500.0,0.00028955,2]
[358150331,1744779038859,-500.0,0.00028955,2]
[358150332,1744779038870,-500.0,0.00028955,2]
[358150333,1744779038879,-500.0,0.00028955,2]
[358150334,1744779038889,-553.97953087,0.00028955,2]
[358150335,1744779038900,-500.0,0.00028955,2]
[358150336,1744779038910,-500.0,0.00028955,2]
[358150337,1744779038920,-500.0,0.00028955,2]
[358150338,1744779038930,-500.0,0.00028955,2]
[358150339,1744779038940,-500.0,0.00028955,2]
[358150340,1744779038950,-500.0,0.00028955,2]
[358150341,1744779038961,-500.0,0.00028955,2]
[358150342,1744779038971,-500.0,0.00028955,2]
[358150343,1744779038981,-500.0,0.00028955,2]
[358150344,1744779038991,-500.0,0.00028955,2]
[358150345,1744779039001,-500.0,0.00028955,2]
[358150346,1744779039011,-500.0,0.00028955,2]
[358150347,1744779039021,-500.0,0.00028955,2]
[358150348,1744779039031,-500.0,0.00028955,2]
[358150349,1744779039041,-500.0,0.00028955,2]
[358150350,1744779039051,-500.0,0.00028955,2]
[358150351,1744779039062,-500.0,0.00028955,2]
[358150352,1744779039073,-500.0,0.00028955,2]
[358150353,1744779039084,-500.0,0.00028955,2]
[358150354,1744779039094,-500.0,0.00028955,2]
[358150355,1744779039105,-500.0,0.00028955,2]
[358150356,1744779039115,-500.0,0.00028955,2]
[358150357,1744779039125,-500.0,0.00028955,2]
[358150358,1744779039135,-500.0,0.00028955,2]
[358150359,1744779039146,-500.0,0.00028955,2]
[358150360,1744779039156,-500.0,0.00028955,2]
[358150361,1744779039167,-163.59405769,0.00028955,2]
[358150362,1744779039176,-500.0,0.00028955,2]
[358150363,1744779039187,-500.0,0.00028955,2]
[358150364,1744779039197,-500.0,0.00028955,2]
[358150365,1744779039207,-500.0,0.00028955,2]
[358150366,1744779039221,-500.0,0.00028955,2]
[358150367,1744779039234,-500.0,0.00028955,2]
[358150368,1744779039245,-129.39854125,0.00030789,2]
[358150369,1744779039255,-500.0,0.00030789,2]
[358150370,1744779039266,-158.27882119,0.00030789,2]
[358150371,1744779039276,-500.0,0.00030789,2]
[358150372,1744779039286,-500.0,0.00030789,2]
[358150373,1744779039297,-60367.60159891,0.00030791,2]
[358150374,1744779039307,-4762.04587264,0.00030791,3]
[358150375,1744779039317,-420.0,0.00030791,2]
[358150376,1744779039327,-500.0,0.000308,5]
[358150377,1744779039337,-500.0,0.000308,5]
[358150378,1744779039346,-500.0,0.000308,2]
[358150379,1744779039356,-500.0,0.000308,5]
[358150380,1744779039365,-500.0,0.000308,5]
[358150381,1744779039374,-500.0,0.000308,5]
[358150382,1744779039384,-500.01383232,0.000308,5]
[358150383,1744779039393,-500.0,0.000308,5]
[358150384,1744779039403,-500.0,0.000308,5]
[358150385,1744779039413,-207.30818587,0.00031067,9]
[358150386,1744779039424,-1000.0,0.00032,2]
[358150387,1744779039434,-165.66,0.000321,2]
[358150388,1744779039443,-207.30818587,0.00032122,10]
[358150389,1744779039453,-1167.44578113,0.00032711,2]
[358150390,1744779039463,-2000.0,0.000328,14]
[358150391,1744779039475,-207.30818587,0.00033178,11]
[358150392,1744779039486,-8925.82165225,0.00033373,2]
[358150393,1744779039496,-8925.82165225,0.00033374,2]
[358150394,1744779039506,-587.0,0.00033385,3]
[358150395,1744779039513,-500.0,0.000334,5]
[358150396,1744779039520,-503.59863014,0.000334,5]
[358150397,1744779039527,-500.0,0.000334,5]
[358150398,1744779039535,-498.93251299,0.00033418,2]
[358150399,1744779039542,-207.30818587,0.00034233,11]
[358150400,1744779039550,-757.610328,0.00034375,30]
[358150401,1744779039557,-1167.44578113,0.00034731,2]
[358150402,1744779039566,-1000.0,0.00035,3]
[358150403,1744779039576,-207.30818587,0.00035289,12]
[358150404,1744779039585,-1000.0,0.00036,5]
[358150405,1744779039595,-823.0,0.00036197,3]
[358150406,1744779039604,-1000.0,0.00036279,2]
[358150407,1744779039614,-1000.0,0.00036279,5]
[358150408,1744779039624,-1000.0,0.00036279,5]
[358150409,1744779039633,-500.0,0.00036279,5]
[358150410,1744779039643,-1000.0,0.00036279,5]
[358150411,1744779039652,-160.0,0.00036342,2]
[358150412,1744779039662,-207.30818587,0.00036344,13]
[358150413,1744779039672,-1167.44578113,0.00036751,2]
[358150414,1744779039683,-1000.0,0.00037,120]
[358150415,1744779039692,-207.30818587,0.000374,13]
[358150416,1744779039701,-1000.0,0.00038,7]
[358150417,1744779039710,-207.30818587,0.00038456,14]
[358150418,1744779039723,-1167.44578113,0.00038771,2]
[358150419,1744779039733,-525.60995166,0.00038879,5]
[358150420,1744779039742,-1000.0,0.00038879,5]
[358150421,1744779039751,-3377.34474102,0.00039,30]
[358150422,1744779039762,-1152.0,0.00039246,5]
[358150423,1744779039772,-8925.82165225,0.0003928,3]
[358150424,1744779039781,-160.0,0.0003928,3]
[358150425,1744779039791,-575.26,0.0003929,3]
[358150426,1744779039802,-207.30818587,0.00039511,15]
[358150427,1744779039813,-262.90613875,0.00039693,2]
[358150428,1744779039823,-151.0,0.00039726,7]
[358150429,1744779039833,-151.0,0.00039726,7]
[358150430,1744779039843,-151.95654356,0.00039726,7]
[358150431,1744779039853,-151.0,0.00039726,7]
[358150432,1744779039863,-151.0,0.00039726,7]
[358150433,1744779039874,-151.0,0.00039726,7]
[358150434,1744779039884,-151.0,0.00039726,2]
[358150435,1744779039894,-151.0,0.00039726,2]
[358150436,1744779039904,-151.0,0.00039726,2]
[358150437,1744779039914,-151.0,0.00039726,2]
[358150438,1744779039926,-151.0,0.00039726,2]
[358150439,1744779039936,-151.0,0.00039726,2]
[358150440,1744779039947,-151.0,0.00039726,2]
[358150441,1744779039958,-151.0,0.00039726,2]
[358150442,1744779039968,-151.0,0.00039726,2]
[358150443,1744779039979,-151.0,0.00039726,2]
[358150444,1744779039989,-151.0,0.00039726,2]
[358150445,1744779040000,-500.0,0.00039726,15]
[358150446,1744779040010,-500.0,0.00039726,15]
[358150447,1744779040020,-500.0,0.00039726,15]
[358150448,1744779040030,-500.0,0.00039726,15]
[358150449,1744779040040,-500.0,0.00039726,15]
[358150450,1744779040050,-500.0,0.00039726,15]
[358150451,1744779040060,-500.0,0.00039726,15]
[358150452,1744779040071,-500.0,0.00039726,15]
[358150453,1744779040081,-500.0,0.00039726,15]
[358150454,1744779040091,-223.09645084,0.00039726,15]
[358150455,1744779040101,-500.0,0.00039726,15]
[358150456,1744779040111,-500.0,0.00039726,15]
[358150457,1744779040122,-500.0,0.00039726,15]
[358150458,1744779040132,-500.0,0.00039726,15]
[358150459,1744779040142,-500.0,0.00039726,15]
[358150460,1744779040153,-500.0,0.00039726,15]
[358150461,1744779040163,-500.0,0.00039726,15]
[358150462,1744779040173,-500.0,0.00039726,15]
[358150464,1744779040183,-500.0,0.00039726,15]
[358150466,1744779040194,-500.0,0.00039726,15]
[358150467,1744779040205,-500.0,0.00039726,15]
[358150468,1744779040215,-500.0,0.00039726,15]
[358150469,1744779040226,-500.0,0.00039726,15]
[358150470,1744779040237,-500.0,0.00039726,15]
[358150471,1744779040247,-500.0,0.00039726,15]
[358150472,1744779040258,-500.0,0.00039726,15]
[358150473,1744779040268,-500.0,0.00039726,15]
[358150474,1744779040279,-500.0,0.00039726,15]
[358150475,1744779040289,-500.0,0.00039726,15]
[358150476,1744779040299,-500.0,0.00039726,15]
[358150477,1744779040310,-500.0,0.00039726,15]
[358150478,1744779040320,-500.0,0.00039726,15]
[358150479,1744779040330,-500.0,0.00039726,15]
[358150480,1744779040341,-500.0,0.00039726,15]
[358150481,1744779040351,-151.0,0.00039753,7]
[358150482,1744779040361,-151.0,0.00039753,7]
[358150483,1744779040371,-151.0,0.00039753,7]
[358150484,1744779040381,-151.0,0.00039753,7]
[358150485,1744779040391,-151.0,0.00039753,7]
[358150486,1744779040401,-151.0,0.00039753,2]
[358150487,1744779040412,-151.0,0.00039753,2]
[358150488,1744779040422,-200.45469408,0.00039753,2]
[358150489,1744779040432,-151.0,0.00039753,2]
[358150490,1744779040442,-151.0,0.00039753,2]
[358150491,1744779040452,-201.8662482,0.00039753,2]
[358150492,1744779040462,-206.33561728,0.00039753,2]
[358150493,1744779040473,-151.0,0.00039753,2]
[358150494,1744779040483,-208.17177167,0.00039781,7]
[358150495,1744779040493,-201.21920761,0.00039781,7]
[358150496,1744779040504,-201.98601369,0.00039781,7]
[358150497,1744779040514,-200.58608511,0.00039781,7]
[358150498,1744779040524,-200.78010879,0.00039781,7]
[358150499,1744779040534,-202.36545096,0.00039781,2]
[358150500,1744779040545,-202.45158531,0.00039781,2]
[358150501,1744779040555,-212.52722198,0.00039781,2]
[358150502,1744779040565,-215.96179571,0.00039781,2]
[358150503,1744779040575,-211.7733043,0.00039781,2]
[358150504,1744779040585,-450.0,0.0004,120]
[358150505,1744779040595,-151.0,0.000403,15]
[358150506,1744779040605,-17851.6433045,0.00040444,3]
[358150507,1744779040615,-160.1712966,0.00040446,30]
[358150508,1744779040625,-156.905233,0.00040446,30]
[358150509,1744779040635,-156.2744011,0.00040446,30]
[358150510,1744779040645,-675.02206145,0.00040454,3]
[358150511,1744779040655,-420.18615873,0.00040454,3]
[358150512,1744779040665,-44629.1082613,0.00040454,3]
[358150513,1744779040675,-178.40172,0.00040454,14]
[358150514,1744779040685,-178.40172,0.00040454,14]
[358150515,1744779040696,-139326.16427066,0.00040464,2]
[358150516,1744779040711,-358.12697751,0.00040464,2]
[358150517,1744779040727,-12777.39631551,0.00040464,2]
[358150522,1744779046652,-173.0,0.00033,2]
[358150523,1744779046662,-160.0,0.0003928,3]
[358150524,1744779046672,-2107.3342419,0.00040464,2]
[358150525,1744779046702,-835.8752,0.00040464,2]
[358150618,1744780233202,-280.08009828,0.00025,2]
[358150619,1744780233212,-300.0,0.00027181,2]
[358150620,1744780233222,-300.0,0.00027181,2]
[358150621,1744780233232,-300.0,0.00027181,2]
[358150622,1744780233242,-10415.9479045,0.00027182,2]
[358150623,1744780233252,-298.492546,0.00027289,2]
[358150624,1744780233262,-1930.57,0.00027632,2]
[358150625,1744780233272,-1381.35483899,0.00027632,2]
[358150626,1744780233282,-174.5636727,0.00027732,2]
[358150627,1744780233291,-208.17539223,0.000279,7]
[358150628,1744780233301,-172.60396593,0.00028854,2]
[358150629,1744780233311,-1000.0,0.00028854,2]
[358150630,1744780233321,-8000.0,0.000289,2]
[358150631,1744780233331,-5004.69253695,0.00028937,2]
[358150632,1744780233341,-497.03996023,0.00028945,2]
[358150633,1744780233351,-561.83049039,0.00028945,2]
[358150634,1744780233594,-500.0,0.00028945,2]
[358150635,1744780233605,-500.0,0.00028945,2]
[358150636,1744780233615,-410.79517484,0.00028945,2]
[358150637,1744780233624,-500.0,0.00028945,2]
[358150638,1744780233634,-500.0,0.00028945,2]
[358150639,1744780233644,-500.30648708,0.00029,5]
[358150640,1744780233653,-355.63416494,0.00029,5]
[358150641,1744780233663,-500.0,0.00029,2]
[358150642,1744780233673,-500.0,0.00029,5]
[358150643,1744780233683,-462.9882562,0.00029,5]
[358150644,1744780233708,-37.0117438,0.00029,5]
[358150645,1744780233718,-500.0,0.00029,5]
[358150646,1744780233728,-500.0,0.00029,5]
[358150647,1744780233738,-467.47480676,0.00029,5]
[358150648,1744780233751,-40.42035283,0.00029,5]